[Event "Late-Titled-Tuesday-Blitz-April-16-2024"]
[Site "Chess.com"]
[Date "2024.04.16"]
[Round "6"]
[White "Anton_Demchenko"]
[Black "TangerineandLemon25"]
[Result "1-0"]
[WhiteElo "2957"]
[BlackElo "2604"]
[TimeControl "180+1"]
[EndTime "15:04:08 PDT"]
[Termination "Anton_Demchenko won by resignation"]

1. e4 {[%clk 0:03:00.9]} 1... c5 {[%clk 0:02:47.4]} 2. Nf3 {[%clk 0:03:01]} 2...
d6 {[%clk 0:02:46.9]} 3. d4 {[%clk 0:03:00.5]} 3... cxd4 {[%clk 0:02:47.8]} 4.
Qxd4 {[%clk 0:03:00.5]} 4... Nc6 {[%clk 0:02:46.7]} 5. Qe3 {[%clk 0:03:00.8]}
5... Nf6 {[%clk 0:02:40.9]} 6. Nc3 {[%clk 0:03:01.1]} 6... e6 {[%clk 0:02:37.8]}
7. b3 {[%clk 0:03:01]} 7... Be7 {[%clk 0:02:37]} 8. Bb2 {[%clk 0:03:00.2]} 8...
Bd7 {[%clk 0:02:37.2]} 9. O-O-O {[%clk 0:03:00.2]} 9... a6 {[%clk 0:02:34.4]}
10. Rg1 {[%clk 0:02:56.7]} 10... h5 {[%clk 0:02:32.6]} 11. h3 {[%clk 0:02:56.6]}
11... h4 {[%clk 0:02:31.2]} 12. Kb1 {[%clk 0:02:53.2]} 12... Qa5 {[%clk
0:02:30.4]} 13. g3 {[%clk 0:02:32.5]} 13... hxg3 {[%clk 0:02:26.8]} 14. Rxg3
{[%clk 0:02:32.3]} 14... Nh5 {[%clk 0:02:25.7]} 15. Rg1 {[%clk 0:02:28.3]} 15...
Qc5 {[%clk 0:02:05.5]} 16. Qe1 {[%clk 0:02:14]} 16... Qa5 {[%clk 0:01:58.1]} 17.
Qd2 {[%clk 0:02:02.8]} 17... Rc8 {[%clk 0:01:43.3]} 18. Ng5 {[%clk 0:01:43.2]}
18... b5 {[%clk 0:00:52.1]} 19. f4 {[%clk 0:01:35.8]} 19... Qb6 {[%clk 0:00:46]}
20. Be2 {[%clk 0:01:30.8]} 20... Nf6 {[%clk 0:00:42.1]} 21. Bd3 {[%clk
0:01:10.9]} 21... Nb4 {[%clk 0:00:24.2]} 22. e5 {[%clk 0:01:05.5]} 22... dxe5
{[%clk 0:00:21]} 23. fxe5 {[%clk 0:01:04.7]} 23... Nfd5 {[%clk 0:00:20.7]} 24.
Nxd5 {[%clk 0:01:02]} 24... Nxd5 {[%clk 0:00:21.6]} 25. Ne4 {[%clk 0:00:30.4]}
25... Qe3 {[%clk 0:00:18.1]} 26. Qg2 {[%clk 0:00:26.8]} 26... Qxh3 {[%clk
0:00:09.6]} 27. Qxg7 {[%clk 0:00:24.3]} 27... Rf8 {[%clk 0:00:10.2]} 28. Nd6+
{[%clk 0:00:17.8]} 28... Bxd6 {[%clk 0:00:10]} 29. exd6 {[%clk 0:00:18.7]} 29...
Nf4 {[%clk 0:00:06.3]} 30. Bf6 {[%clk 0:00:14.3]} 30... Nd5 {[%clk 0:00:06]} 31.
Bb2 {[%clk 0:00:09.3]} 31... Qh2 {[%clk 0:00:06.1]} 32. Rh1 {[%clk 0:00:08.3]}
32... Qxd6 {[%clk 0:00:06.2]} 33. Rh8 {[%clk 0:00:06.5]} 33... Rxh8 {[%clk
0:00:05.3]} 34. Qxh8+ {[%clk 0:00:07.4]} 34... Qf8 {[%clk 0:00:05.6]} 35. Qh5
{[%clk 0:00:06.9]} 35... Qe7 {[%clk 0:00:06.5]} 36. Rg1 {[%clk 0:00:06.1]} 36...
Qf8 {[%clk 0:00:05.6]} 37. Rf1 {[%clk 0:00:05.5]} 37... Ke7 {[%clk 0:00:06.5]}
38. Ba3+ {[%clk 0:00:04.4]} 38... b4 {[%clk 0:00:06.6]} 39. Bb2 {[%clk
0:00:04.7]} 39... Nc3+ {[%clk 0:00:07.5]} 40. Ka1 {[%clk 0:00:04.7]} 40... f6
{[%clk 0:00:07.1]} 41. Qh4 {[%clk 0:00:05.1]} 41... Nd5 {[%clk 0:00:06.5]} 42.
Bc4 {[%clk 0:00:04.7]} 42... Bb5 {[%clk 0:00:06.6]} 43. Re1 {[%clk 0:00:03.4]}
43... Bxc4 {[%clk 0:00:06.1]} 44. bxc4 {[%clk 0:00:04.3]} 44... Nc3 {[%clk
0:00:06.7]} 45. Qf4 {[%clk 0:00:03.2]} 45... Qf7 {[%clk 0:00:07.2]} 46. Qe3
{[%clk 0:00:03.4]} 46... e5 {[%clk 0:00:07.3]} 47. Qa7+ {[%clk 0:00:03.2]} 47...
Kf8 {[%clk 0:00:07.7]} 48. Qxa6 {[%clk 0:00:03.9]} 48... Qxc4 {[%clk 0:00:07.4]}
49. Qxf6+ {[%clk 0:00:03.4]} 49... Qf7 {[%clk 0:00:06.7]} 50. Qh8+ {[%clk
0:00:03.1]} 50... Qg8 {[%clk 0:00:06.7]} 51. Rf1+ {[%clk 0:00:03.6]} 51... Ke7
{[%clk 0:00:06.8]} 52. Qxe5+ {[%clk 0:00:04]} 52... Qe6 {[%clk 0:00:07.7]} 53.
Qg7+ {[%clk 0:00:03.8]} 53... Kd6 {[%clk 0:00:08.1]} 54. Rf6 {[%clk 0:00:04.1]}
54... Re8 {[%clk 0:00:04]} 55. Rxe6+ {[%clk 0:00:04.5]} 55... Rxe6 {[%clk
0:00:04.9]} 56. Bxc3 {[%clk 0:00:04.9]} 56... bxc3 {[%clk 0:00:05.8]} 57. Qxc3
{[%clk 0:00:04.8]} 1-0

[Event "Late-Titled-Tuesday-Blitz-April-16-2024"]
[Site "Chess.com"]
[Date "2024.04.16"]
[Round "6"]
[White "ExchangeAB"]
[Black "Orest_Vovk"]
[Result "0-1"]
[WhiteElo "2392"]
[BlackElo "2546"]
[TimeControl "180+1"]
[EndTime "15:04:11 PDT"]
[Termination "Orest_Vovk won by resignation"]

1. d4 {[%clk 0:03:00.9]} 1... Nc6 {[%clk 0:02:57.1]} 2. d5 {[%clk 0:02:50]} 2...
Ne5 {[%clk 0:02:56.5]} 3. Bf4 {[%clk 0:02:46.3]} 3... Ng6 {[%clk 0:02:56.5]} 4.
Bg3 {[%clk 0:02:46.4]} 4... e5 {[%clk 0:02:57.1]} 5. dxe6 {[%clk 0:02:44.5]}
5... fxe6 {[%clk 0:02:54.9]} 6. e4 {[%clk 0:02:44.2]} 6... Nf6 {[%clk
0:02:54.7]} 7. Nd2 {[%clk 0:02:43.3]} 7... Bc5 {[%clk 0:02:53.8]} 8. Bd3 {[%clk
0:02:42]} 8... O-O {[%clk 0:02:52.7]} 9. Ngf3 {[%clk 0:02:41.8]} 9... d5 {[%clk
0:02:52.6]} 10. O-O {[%clk 0:02:39.7]} 10... Nh5 {[%clk 0:02:49]} 11. exd5
{[%clk 0:02:34.7]} 11... Nxg3 {[%clk 0:02:48]} 12. hxg3 {[%clk 0:02:34]} 12...
exd5 {[%clk 0:02:48.2]} 13. Bxg6 {[%clk 0:02:14.6]} 13... hxg6 {[%clk
0:02:47.2]} 14. Nb3 {[%clk 0:02:13.1]} 14... Bb6 {[%clk 0:02:45.7]} 15. Ne5
{[%clk 0:02:07.8]} 15... Qd6 {[%clk 0:02:40]} 16. Nf3 {[%clk 0:01:38.3]} 16...
Qxg3 {[%clk 0:02:24.7]} 17. Qxd5+ {[%clk 0:01:37.8]} 17... Kh8 {[%clk
0:02:24.6]} 18. Nbd4 {[%clk 0:01:14.2]} 18... Qg4 {[%clk 0:02:18.6]} 19. Rad1
{[%clk 0:00:58.2]} 19... Bf5 {[%clk 0:02:15]} 20. Nxf5 {[%clk 0:00:54.3]} 20...
Rxf5 {[%clk 0:02:13.9]} 21. Qxb7 {[%clk 0:00:52.7]} 21... Raf8 {[%clk
0:02:12.3]} 22. Rd3 {[%clk 0:00:49.7]} 22... Rh5 {[%clk 0:02:05.1]} 23. Rfd1
{[%clk 0:00:34.4]} 23... Kh7 {[%clk 0:01:46.9]} 24. Qc6 {[%clk 0:00:30.1]} 24...
Rf6 {[%clk 0:01:18.6]} 25. Qd7 {[%clk 0:00:30.1]} 25... Rhf5 {[%clk 0:01:10.2]}
26. Kf1 {[%clk 0:00:25.3]} 26... Qh5 {[%clk 0:00:56.5]} 27. Kg1 {[%clk
0:00:23.4]} 27... g5 {[%clk 0:00:47.5]} 28. Nxg5+ {[%clk 0:00:20.3]} 28... Qxg5
{[%clk 0:00:34.1]} 29. Rh3+ {[%clk 0:00:20.2]} 29... Kg6 {[%clk 0:00:34.1]} 30.
Qe8+ {[%clk 0:00:20.1]} 30... Rf7 {[%clk 0:00:30.9]} 31. Qe6+ {[%clk 0:00:17.6]}
31... R5f6 {[%clk 0:00:16.1]} 32. Qe4+ {[%clk 0:00:17.5]} 32... Qf5 {[%clk
0:00:11.8]} 33. Rg3+ {[%clk 0:00:17.4]} 33... Kh7 {[%clk 0:00:11.8]} 34. Rh3+
{[%clk 0:00:16.9]} 34... Rh6 {[%clk 0:00:11.5]} 35. Rxh6+ {[%clk 0:00:15.6]}
35... gxh6 {[%clk 0:00:09.6]} 36. Qxf5+ {[%clk 0:00:14.3]} 36... Rxf5 {[%clk
0:00:09.5]} 37. Rd2 {[%clk 0:00:13]} 37... Kg6 {[%clk 0:00:09.5]} 38. Kf1 {[%clk
0:00:13.3]} 38... h5 {[%clk 0:00:09.7]} 39. f3 {[%clk 0:00:13.8]} 39... h4
{[%clk 0:00:09.8]} 40. Ke2 {[%clk 0:00:14]} 40... Rg5 {[%clk 0:00:09.3]} 41. Kd1
{[%clk 0:00:12.6]} 41... Kf6 {[%clk 0:00:07.3]} 42. c4 {[%clk 0:00:12.9]} 42...
Ke6 {[%clk 0:00:07.3]} 43. Kc2 {[%clk 0:00:13.3]} 43... Rg3 {[%clk 0:00:07.4]}
44. a3 {[%clk 0:00:13.3]} 44... h3 {[%clk 0:00:07.6]} 45. gxh3 {[%clk
0:00:14.2]} 45... Rxf3 {[%clk 0:00:08]} 46. Rh2 {[%clk 0:00:13.9]} 46... Ke5
{[%clk 0:00:05.4]} 47. h4 {[%clk 0:00:13.2]} 47... Kf6 {[%clk 0:00:05.7]} 48. h5
{[%clk 0:00:13.6]} 48... Kg7 {[%clk 0:00:06.1]} 49. h6+ {[%clk 0:00:14.1]} 49...
Kh7 {[%clk 0:00:06.5]} 50. Rh5 {[%clk 0:00:14.4]} 50... Rf2+ {[%clk 0:00:06.5]}
51. Kb3 {[%clk 0:00:14.4]} 51... Bd4 {[%clk 0:00:05.8]} 52. Rd5 {[%clk
0:00:13.7]} 52... c5 {[%clk 0:00:05.9]} 53. Ka4 {[%clk 0:00:09]} 53... Rxb2
{[%clk 0:00:04.9]} 54. Rd7+ {[%clk 0:00:08.9]} 54... Kxh6 {[%clk 0:00:04.9]} 55.
Rxa7 {[%clk 0:00:09.8]} 55... Kg5 {[%clk 0:00:05.3]} 56. Re7 {[%clk 0:00:09.6]}
56... Kf6 {[%clk 0:00:05.2]} 57. Re2 {[%clk 0:00:09.7]} 57... Rxe2 {[%clk
0:00:04]} 0-1

[Event "Late-Titled-Tuesday-Blitz-April-16-2024"]
[Site "Chess.com"]
[Date "2024.04.16"]
[Round "6"]
[White "Giantgoogachess"]
[Black "Aragon"]
[Result "0-1"]
[WhiteElo "2288"]
[BlackElo "2097"]
[TimeControl "180+1"]
[EndTime "15:04:11 PDT"]
[Termination "Aragon won by resignation"]

1. d4 {[%clk 0:02:57.8]} 1... b5 {[%clk 0:02:58.8]} 2. e4 {[%clk 0:02:57.3]}
2... a6 {[%clk 0:02:58.8]} 3. a4 {[%clk 0:02:57]} 3... b4 {[%clk 0:02:57.9]} 4.
Bd3 {[%clk 0:02:57.7]} 4... Bb7 {[%clk 0:02:57.3]} 5. Nf3 {[%clk 0:02:58.5]}
5... e6 {[%clk 0:02:56.2]} 6. Qe2 {[%clk 0:02:59]} 6... Nf6 {[%clk 0:02:56]} 7.
O-O {[%clk 0:02:59.4]} 7... d5 {[%clk 0:02:54.6]} 8. exd5 {[%clk 0:02:59.7]}
8... Nxd5 {[%clk 0:02:48.3]} 9. c4 {[%clk 0:02:58.5]} 9... bxc3 {[%clk
0:02:46.3]} 10. Nxc3 {[%clk 0:02:59.1]} 10... Be7 {[%clk 0:02:42]} 11. Bd2
{[%clk 0:02:56.1]} 11... c5 {[%clk 0:02:31.8]} 12. dxc5 {[%clk 0:02:54]} 12...
Bxc5 {[%clk 0:02:31.2]} 13. Ne4 {[%clk 0:02:49.7]} 13... Be7 {[%clk 0:02:30.4]}
14. Rac1 {[%clk 0:02:44]} 14... Nd7 {[%clk 0:02:29.2]} 15. Nc5 {[%clk
0:02:44.6]} 15... Nxc5 {[%clk 0:02:26.5]} 16. Bb1 {[%clk 0:02:43.1]} 16... Nd7
{[%clk 0:02:11.6]} 17. Qd3 {[%clk 0:02:21.2]} 17... Qb6 {[%clk 0:02:07.4]} 18.
a5 {[%clk 0:02:12.3]} 18... Qb5 {[%clk 0:02:01.9]} 19. Qxb5 {[%clk 0:02:10]}
19... axb5 {[%clk 0:02:01.5]} 20. Bd3 {[%clk 0:02:10.9]} 20... Ba6 {[%clk
0:01:53.8]} 21. Nd4 {[%clk 0:01:34]} 21... b4 {[%clk 0:01:38.1]} 22. Bxa6 {[%clk
0:01:31.3]} 22... Rxa6 {[%clk 0:01:38.1]} 23. Rc8+ {[%clk 0:01:31.2]} 23... Bd8
{[%clk 0:01:38.2]} 24. Nc6 {[%clk 0:01:31.1]} 24... Rxc6 {[%clk 0:01:25.4]} 25.
Rxc6 {[%clk 0:01:32]} 25... Bxa5 {[%clk 0:01:19.1]} 26. Rc8+ {[%clk 0:01:31.3]}
26... Bd8 {[%clk 0:01:19.1]} 27. Ra1 {[%clk 0:01:20.2]} 27... N7b6 {[%clk
0:01:18.5]} 28. Rb8 {[%clk 0:01:18.5]} 28... Kd7 {[%clk 0:01:11.3]} 29. Ra7+
{[%clk 0:01:17.2]} 29... Kc6 {[%clk 0:01:10.9]} 30. Rxf7 {[%clk 0:01:15.1]}
30... g6 {[%clk 0:01:04.9]} 31. g3 {[%clk 0:01:14]} 31... Re8 {[%clk 0:01:03.3]}
32. Rxh7 {[%clk 0:01:13]} 32... Re7 {[%clk 0:00:58.4]} 33. Rxe7 {[%clk 0:01:10]}
33... Bxe7 {[%clk 0:00:57.8]} 34. Rg8 {[%clk 0:01:09.3]} 34... Nc4 {[%clk
0:00:48.3]} 35. Bc1 {[%clk 0:01:06.8]} 35... g5 {[%clk 0:00:44.5]} 36. Kg2
{[%clk 0:00:55.1]} 36... b3 {[%clk 0:00:44.5]} 37. Kf3 {[%clk 0:00:47.2]} 37...
Nb4 {[%clk 0:00:41.6]} 38. Kg4 {[%clk 0:00:39.3]} 38... Nd3 {[%clk 0:00:39.5]}
39. Bxg5 {[%clk 0:00:39.9]} 39... Bxg5 {[%clk 0:00:33.5]} 40. Kxg5 {[%clk
0:00:39.6]} 40... Ndxb2 {[%clk 0:00:30.3]} 41. Rb8 {[%clk 0:00:35]} 41... Nb6
{[%clk 0:00:29.4]} 42. Re8 {[%clk 0:00:29.1]} 42... Kd7 {[%clk 0:00:26.7]} 43.
Rf8 {[%clk 0:00:16.4]} 43... N2c4 {[%clk 0:00:17.4]} 44. Rf3 {[%clk 0:00:16.8]}
44... b2 {[%clk 0:00:17.4]} 45. Rb3 {[%clk 0:00:17]} 45... Nd5 {[%clk
0:00:16.2]} 46. h4 {[%clk 0:00:14.8]} 46... Nc3 {[%clk 0:00:12.5]} 47. h5 {[%clk
0:00:14.5]} 47... b1=Q {[%clk 0:00:12.9]} 48. Rxb1 {[%clk 0:00:14.2]} 48... Nxb1
{[%clk 0:00:13.8]} 49. Kg6 {[%clk 0:00:13.4]} 49... Ne5+ {[%clk 0:00:11.9]} 50.
Kg7 {[%clk 0:00:13.8]} 50... Ke7 {[%clk 0:00:11.3]} 51. h6 {[%clk 0:00:13.9]}
51... Nd2 {[%clk 0:00:10.2]} 52. h7 {[%clk 0:00:13.2]} 52... Nf7 {[%clk
0:00:10.4]} 53. g4 {[%clk 0:00:13.4]} 53... Nf3 {[%clk 0:00:10.9]} 54. Kg8
{[%clk 0:00:07]} 54... e5 {[%clk 0:00:09.9]} 55. Kg7 {[%clk 0:00:06.8]} 55... e4
{[%clk 0:00:09.7]} 56. Kg6 {[%clk 0:00:06.3]} 56... Ke6 {[%clk 0:00:09.8]} 57.
Kg7 {[%clk 0:00:06.6]} 57... N3g5 {[%clk 0:00:08.2]} 58. Kg6 {[%clk 0:00:06.6]}
58... Nxh7 {[%clk 0:00:06.9]} 59. Kxh7 {[%clk 0:00:07.5]} 59... Kf6 {[%clk
0:00:07.3]} 60. Kg8 {[%clk 0:00:07.1]} 60... Ne5 {[%clk 0:00:07.2]} 61. Kh7
{[%clk 0:00:06.9]} 61... Nxg4 {[%clk 0:00:07.4]} 0-1

[Event "Late-Titled-Tuesday-Blitz-April-16-2024"]
[Site "Chess.com"]
[Date "2024.04.16"]
[Round "6"]
[White "N_I_Chess"]
[Black "Sjakkerntobi"]
[Result "0-1"]
[WhiteElo "2381"]
[BlackElo "2514"]
[TimeControl "180+1"]
[EndTime "15:04:12 PDT"]
[Termination "Sjakkerntobi won on time"]

1. d4 {[%clk 0:02:58.8]} 1... Nf6 {[%clk 0:02:53.4]} 2. c4 {[%clk 0:02:56.3]}
2... e6 {[%clk 0:02:53.6]} 3. Nc3 {[%clk 0:02:54.2]} 3... c5 {[%clk 0:02:54.1]}
4. d5 {[%clk 0:02:53.9]} 4... exd5 {[%clk 0:02:55]} 5. cxd5 {[%clk 0:02:54.8]}
5... d6 {[%clk 0:02:55.7]} 6. e4 {[%clk 0:02:53.2]} 6... g6 {[%clk 0:02:56.2]}
7. f4 {[%clk 0:02:51.7]} 7... Bg7 {[%clk 0:02:56.3]} 8. Nf3 {[%clk 0:02:50.5]}
8... O-O {[%clk 0:02:55.2]} 9. Be2 {[%clk 0:02:50.2]} 9... Re8 {[%clk
0:02:55.1]} 10. e5 {[%clk 0:02:50.6]} 10... dxe5 {[%clk 0:02:50.9]} 11. fxe5
{[%clk 0:02:51.5]} 11... Ng4 {[%clk 0:02:50.4]} 12. Bg5 {[%clk 0:02:51.9]} 12...
f6 {[%clk 0:02:39.7]} 13. exf6 {[%clk 0:02:51.9]} 13... Bxf6 {[%clk 0:02:40.6]}
14. Qd2 {[%clk 0:02:52.5]} 14... Bxg5 {[%clk 0:02:34.4]} 15. Qxg5 {[%clk
0:02:53.4]} 15... Qxg5 {[%clk 0:02:28]} 16. Nxg5 {[%clk 0:02:54.3]} 16... Ne3
{[%clk 0:02:28.9]} 17. Kf2 {[%clk 0:02:54]} 17... Nd7 {[%clk 0:02:15.4]} 18. Ne6
{[%clk 0:02:44.8]} 18... Nxd5 {[%clk 0:02:00.6]} 19. Bc4 {[%clk 0:02:11.7]}
19... N7b6 {[%clk 0:01:58.8]} 20. Nxd5 {[%clk 0:02:09.3]} 20... Nxc4 {[%clk
0:01:56.4]} 21. Nf6+ {[%clk 0:02:02.7]} 21... Kf7 {[%clk 0:01:52]} 22. Nxe8
{[%clk 0:01:58]} 22... Bxe6 {[%clk 0:01:51.4]} 23. Nc7 {[%clk 0:01:56.2]} 23...
Rd8 {[%clk 0:01:46.6]} 24. Nxe6 {[%clk 0:01:45.7]} 24... Rd2+ {[%clk 0:01:43.4]}
25. Kg3 {[%clk 0:01:43.8]} 25... Kxe6 {[%clk 0:01:43.5]} 26. Rhe1+ {[%clk
0:01:36.3]} 26... Kf7 {[%clk 0:01:42.1]} 27. Rac1 {[%clk 0:01:05.8]} 27... Nxb2
{[%clk 0:01:20.2]} 28. Rxc5 {[%clk 0:01:03.9]} 28... Nd3 {[%clk 0:01:20.5]} 29.
Rc7+ {[%clk 0:01:01.7]} 29... Kf6 {[%clk 0:01:20.6]} 30. Rf1+ {[%clk 0:00:59.4]}
30... Ke6 {[%clk 0:01:19.9]} 31. a4 {[%clk 0:00:55.6]} 31... Ra2 {[%clk
0:00:57.7]} 32. Rxb7 {[%clk 0:00:31.8]} 32... Rxa4 {[%clk 0:00:57]} 33. Rxh7
{[%clk 0:00:32.4]} 33... Ne5 {[%clk 0:00:54.3]} 34. h3 {[%clk 0:00:26.6]} 34...
a5 {[%clk 0:00:50.1]} 35. Ra7 {[%clk 0:00:20.5]} 35... Ra3+ {[%clk 0:00:49]} 36.
Kh4 {[%clk 0:00:16.4]} 36... Ra2 {[%clk 0:00:44.5]} 37. g4 {[%clk 0:00:14.9]}
37... Ra3 {[%clk 0:00:38.7]} 38. Ra6+ {[%clk 0:00:13]} 38... Kd5 {[%clk
0:00:38.7]} 39. Rd1+ {[%clk 0:00:13.5]} 39... Ke4 {[%clk 0:00:38.9]} 40. Re1+
{[%clk 0:00:13.6]} 40... Kd4 {[%clk 0:00:27.7]} 41. Rd1+ {[%clk 0:00:06.2]}
41... Kc4 {[%clk 0:00:17.8]} 42. Kg5 {[%clk 0:00:04.9]} 42... Rxh3 {[%clk
0:00:12.5]} 43. Re1 {[%clk 0:00:02.1]} 43... Nf3+ {[%clk 0:00:12.3]} 44. Kxg6
{[%clk 0:00:01.4]} 44... Nxe1 {[%clk 0:00:13.2]} 45. Rxa5 {[%clk 0:00:01.6]}
45... Kd4 {[%clk 0:00:12.9]} 46. Ra4+ {[%clk 0:00:01.8]} 46... Kd5 {[%clk
0:00:12.6]} 47. Ra5+ {[%clk 0:00:02.3]} 47... Kc6 {[%clk 0:00:13.1]} 48. g5
{[%clk 0:00:02.5]} 48... Nf3 {[%clk 0:00:10.8]} 49. Rf5 {[%clk 0:00:01.7]} 49...
Nh4+ {[%clk 0:00:10]} 50. Kf6 {[%clk 0:00:01.3]} 50... Nxf5 {[%clk 0:00:10.9]}
51. Kxf5 {[%clk 0:00:01.7]} 51... Kd6 {[%clk 0:00:11.4]} 52. Kf6 {[%clk
0:00:01.8]} 52... Rf3+ {[%clk 0:00:10.9]} 53. Kg7 {[%clk 0:00:01.6]} 53... Ke7
{[%clk 0:00:10.9]} 54. g6 {[%clk 0:00:02]} 54... Rg3 {[%clk 0:00:11.1]} 0-1

[Event "Late-Titled-Tuesday-Blitz-April-16-2024"]
[Site "Chess.com"]
[Date "2024.04.16"]
[Round "6"]
[White "djano"]
[Black "Cluke86"]
[Result "1-0"]
[WhiteElo "2623"]
[BlackElo "2352"]
[TimeControl "180+1"]
[EndTime "15:04:13 PDT"]
[Termination "djano won on time"]

1. e4 {[%clk 0:03:00.9]} 1... d6 {[%clk 0:03:00.9]} 2. Nc3 {[%clk 0:02:59.8]}
2... Nf6 {[%clk 0:02:59.1]} 3. f4 {[%clk 0:02:59.7]} 3... d5 {[%clk 0:02:52.3]}
4. e5 {[%clk 0:02:48.4]} 4... Ng8 {[%clk 0:02:49.5]} 5. Nf3 {[%clk 0:02:45.4]}
5... c5 {[%clk 0:02:48.1]} 6. d4 {[%clk 0:02:42.3]} 6... Nc6 {[%clk 0:02:47.1]}
7. Bb5 {[%clk 0:02:41.1]} 7... e6 {[%clk 0:02:36.5]} 8. O-O {[%clk 0:02:36.9]}
8... a6 {[%clk 0:02:30.6]} 9. Bxc6+ {[%clk 0:02:35.1]} 9... bxc6 {[%clk
0:02:30.3]} 10. Ne2 {[%clk 0:02:27.1]} 10... h5 {[%clk 0:02:19.7]} 11. c3 {[%clk
0:02:26.8]} 11... g6 {[%clk 0:02:18.8]} 12. Be3 {[%clk 0:02:25.2]} 12... c4
{[%clk 0:02:12.6]} 13. b3 {[%clk 0:02:25.2]} 13... cxb3 {[%clk 0:02:09.1]} 14.
axb3 {[%clk 0:02:26.1]} 14... Ne7 {[%clk 0:02:08.4]} 15. b4 {[%clk 0:02:23.9]}
15... Nf5 {[%clk 0:02:07.6]} 16. Bf2 {[%clk 0:02:24.2]} 16... Be7 {[%clk
0:02:06.5]} 17. Qd3 {[%clk 0:02:21.9]} 17... h4 {[%clk 0:02:04]} 18. Nc1 {[%clk
0:02:07.5]} 18... Kf8 {[%clk 0:02:02]} 19. Nb3 {[%clk 0:02:07.7]} 19... Kg7
{[%clk 0:02:00.5]} 20. Na5 {[%clk 0:02:08]} 20... Qb6 {[%clk 0:01:52.7]} 21.
Rfe1 {[%clk 0:02:01.3]} 21... Bd7 {[%clk 0:01:47.1]} 22. Ra2 {[%clk 0:01:57.7]}
22... Ra7 {[%clk 0:01:45.8]} 23. Rea1 {[%clk 0:01:56.1]} 23... Rha8 {[%clk
0:01:46.1]} 24. Qe2 {[%clk 0:01:50]} 24... Qb5 {[%clk 0:01:43.6]} 25. Qe1 {[%clk
0:01:48.2]} 25... Rh8 {[%clk 0:01:31.1]} 26. h3 {[%clk 0:01:43.8]} 26... Qd3
{[%clk 0:01:28.1]} 27. Nb3 {[%clk 0:01:35.4]} 27... Qc4 {[%clk 0:01:15.1]} 28.
Ra3 {[%clk 0:01:15]} 28... Bc8 {[%clk 0:01:15.1]} 29. Na5 {[%clk 0:01:13]} 29...
Qb5 {[%clk 0:01:13.3]} 30. Nd2 {[%clk 0:01:09.8]} 30... Bd7 {[%clk 0:00:57.1]}
31. Nf1 {[%clk 0:01:09.6]} 31... Bd8 {[%clk 0:00:54.1]} 32. Nb3 {[%clk
0:01:08.2]} 32... Qc4 {[%clk 0:00:50.9]} 33. Nc5 {[%clk 0:01:07.1]} 33... Bc8
{[%clk 0:00:50.6]} 34. Nd2 {[%clk 0:01:07.3]} 34... Qb5 {[%clk 0:00:49.9]} 35.
Nf3 {[%clk 0:01:07.6]} 35... Be7 {[%clk 0:00:47.5]} 36. Kh2 {[%clk 0:01:06.6]}
36... Bd8 {[%clk 0:00:46.8]} 37. Qd2 {[%clk 0:01:03.3]} 37... Be7 {[%clk
0:00:46.5]} 38. Ra5 {[%clk 0:01:03]} 38... Qc4 {[%clk 0:00:44.7]} 39. Qb2 {[%clk
0:00:57.8]} 39... Bd8 {[%clk 0:00:44.1]} 40. R5a3 {[%clk 0:00:53]} 40... Bb6
{[%clk 0:00:43.7]} 41. Nb3 {[%clk 0:00:48.7]} 41... Qd3 {[%clk 0:00:39.8]} 42.
Nbd2 {[%clk 0:00:43.3]} 42... Qe2 {[%clk 0:00:23.4]} 43. Kg1 {[%clk 0:00:39.9]}
43... Bd7 {[%clk 0:00:20.7]} 44. Re1 {[%clk 0:00:39.9]} 44... Qb5 {[%clk
0:00:19.9]} 45. Qa1 {[%clk 0:00:39]} 45... Rha8 {[%clk 0:00:16.6]} 46. Nb3
{[%clk 0:00:39]} 46... Bd8 {[%clk 0:00:15.8]} 47. Nc5 {[%clk 0:00:38.2]} 47...
Bc8 {[%clk 0:00:15.6]} 48. Nd2 {[%clk 0:00:35.3]} 48... Kh7 {[%clk 0:00:13.7]}
49. Ndb3 {[%clk 0:00:35.4]} 49... Kg7 {[%clk 0:00:13.9]} 50. Na5 {[%clk
0:00:35.8]} 50... Kh7 {[%clk 0:00:13.4]} 51. Qd1 {[%clk 0:00:34.9]} 51... Kg7
{[%clk 0:00:13]} 52. Qg4 {[%clk 0:00:35.1]} 52... Rb8 {[%clk 0:00:08.6]} 53.
Rea1 {[%clk 0:00:34.5]} 53... Rba8 {[%clk 0:00:08.5]} 54. Nab3 {[%clk
0:00:34.7]} 54... Rb8 {[%clk 0:00:08.1]} 55. Nd2 {[%clk 0:00:35.2]} 55... Rba8
{[%clk 0:00:07.9]} 56. Nf3 {[%clk 0:00:34.6]} 56... Qc4 {[%clk 0:00:07.5]} 57.
Nxh4 {[%clk 0:00:34.6]} 57... Nxh4 {[%clk 0:00:06.7]} 58. Bxh4 {[%clk
0:00:35.5]} 58... Bxh4 {[%clk 0:00:06.5]} 59. Qxh4 {[%clk 0:00:36.4]} 59... a5
{[%clk 0:00:05.3]} 60. Qf6+ {[%clk 0:00:36.6]} 60... Kg8 {[%clk 0:00:04.1]} 61.
bxa5 {[%clk 0:00:37.5]} 61... Ba6 {[%clk 0:00:02.8]} 62. h4 {[%clk 0:00:37.1]}
62... Bb5 {[%clk 0:00:02.8]} 63. Kh2 {[%clk 0:00:36.6]} 63... Qe2 {[%clk
0:00:02.2]} 64. c4 {[%clk 0:00:35.8]} 64... Bxc4 {[%clk 0:00:01.9]} 65. h5
{[%clk 0:00:36.3]} 65... Qg4 {[%clk 0:00:02.1]} 66. h6 {[%clk 0:00:33.7]} 66...
Qh5+ {[%clk 0:00:01.5]} 67. Rh3 {[%clk 0:00:33.2]} 67... Qxh6 {[%clk 0:00:02.4]}
68. Rxh6 {[%clk 0:00:32.8]} 1-0